[Event "*** Titled Tuesday 3|2 Blitz"]
[Site "Chess.com"]
[Date "2015.12.01"]
[Round "4"]
[White "salomez"]
[Black "HansCoolNiemann"]
[Result "0-1"]
[WhiteElo "2091"]
[BlackElo "2182"]
[TimeControl "180+2"]
[EndTime "11:49:33 PST"]
[Termination "HansCoolNiemann won by checkmate"]

1. e4 {[%clk 0:03:01.9]} 1... e6 {[%clk 0:02:59.8]} 2. d4 {[%clk 0:03:02.4]}
2... d5 {[%clk 0:03:00]} 3. Nc3 {[%clk 0:03:03.4]} 3... Nf6 {[%clk 0:02:58.1]}
4. e5 {[%clk 0:03:04.5]} 4... Nfd7 {[%clk 0:02:58]} 5. f4 {[%clk 0:03:05.6]}
5... c5 {[%clk 0:02:58.3]} 6. Nf3 {[%clk 0:03:06.7]} 6... Nc6 {[%clk 0:02:59.8]}
7. Be3 {[%clk 0:03:07.7]} 7... cxd4 {[%clk 0:03:00.8]} 8. Nxd4 {[%clk
0:03:08.7]} 8... Bc5 {[%clk 0:03:02.4]} 9. Qd2 {[%clk 0:03:09]} 9... O-O {[%clk
0:03:03.7]} 10. O-O-O {[%clk 0:03:08.7]} 10... a6 {[%clk 0:03:04.5]} 11. h4
{[%clk 0:03:08.2]} 11... Bxd4 {[%clk 0:03:02.1]} 12. Bxd4 {[%clk 0:03:08.8]}
12... b5 {[%clk 0:03:04]} 13. h5 {[%clk 0:03:02.9]} 13... b4 {[%clk 0:03:03.5]}
14. Na4 {[%clk 0:03:01]} 14... Qa5 {[%clk 0:03:02.4]} 15. b3 {[%clk 0:03:01.6]}
15... Nxd4 {[%clk 0:02:57.7]} 16. Qxd4 {[%clk 0:03:01.7]} 16... Bb7 {[%clk
0:02:59.6]} 17. h6 {[%clk 0:02:50.5]} 17... g6 {[%clk 0:02:57.5]} 18. Kb1 {[%clk
0:02:18.4]} 18... Bc6 {[%clk 0:02:55.8]} 19. Nb2 {[%clk 0:02:19.2]} 19... Bb5
{[%clk 0:02:56.7]} 20. f5 {[%clk 0:02:17]} 20... Rfc8 {[%clk 0:02:49]} 21. fxe6
{[%clk 0:02:10]} 21... fxe6 {[%clk 0:02:50.9]} 22. Qg4 {[%clk 0:01:38.8]} 22...
Qb6 {[%clk 0:02:44.9]} 23. Qg5 {[%clk 0:01:24.2]} 23... Qc7 {[%clk 0:02:39.3]}
24. Rc1 {[%clk 0:00:20.9]} 24... Qxe5 {[%clk 0:02:29.5]} 25. Qxe5 {[%clk
0:00:20.5]} 25... Nxe5 {[%clk 0:02:31.4]} 26. Bxb5 {[%clk 0:00:20.4]} 26... axb5
{[%clk 0:02:31]} 27. Rce1 {[%clk 0:00:20.1]} 27... Nc6 {[%clk 0:02:26.6]} 28.
Rxe6 {[%clk 0:00:17.8]} 28... Nd4 {[%clk 0:02:27.6]} 29. Rd6 {[%clk 0:00:17.4]}
29... Nxc2 {[%clk 0:02:21.8]} 30. Rxd5 {[%clk 0:00:17.1]} 30... Rc7 {[%clk
0:02:20.7]} 31. Rhd1 {[%clk 0:00:15.8]} 31... Na3+ {[%clk 0:02:12]} 32. Ka1
{[%clk 0:00:16.1]} 32... Rac8 {[%clk 0:02:10.9]} 33. Nd3 {[%clk 0:00:13.2]}
33... Nc2+ {[%clk 0:02:09.8]} 34. Kb1 {[%clk 0:00:11.2]} 34... Ne3 {[%clk
0:02:11.7]} 35. Nxb4 {[%clk 0:00:09.6]} 35... Nxd1 {[%clk 0:02:11.1]} 36. Rxd1
{[%clk 0:00:09.8]} 36... Kf7 {[%clk 0:02:11.1]} 37. Rd5 {[%clk 0:00:06.7]} 37...
Rc1+ {[%clk 0:02:04.1]} 38. Kb2 {[%clk 0:00:07.6]} 38... Rg1 {[%clk 0:02:05.5]}
39. Rxb5 {[%clk 0:00:07.7]} 39... Rxg2+ {[%clk 0:02:06.8]} 40. Kb1 {[%clk
0:00:05.9]} 40... Re8 {[%clk 0:02:06.8]} 41. Rb7+ {[%clk 0:00:05.6]} 41... Kf6
{[%clk 0:02:07.1]} 42. Nd5+ {[%clk 0:00:06.7]} 42... Kf5 {[%clk 0:02:05.8]} 43.
Rf7+ {[%clk 0:00:06.4]} 43... Kg5 {[%clk 0:02:05.8]} 44. Rf1 {[%clk 0:00:04]}
44... Kxh6 {[%clk 0:02:03.4]} 45. Rh1+ {[%clk 0:00:02.7]} 45... Kg7 {[%clk
0:02:01.3]} 46. a4 {[%clk 0:00:03.4]} 46... Ree2 {[%clk 0:02:01.6]} 47. Nc3
{[%clk 0:00:03.3]} 47... Rb2+ {[%clk 0:02:01.7]} 48. Ka1 {[%clk 0:00:04.2]}
48... Rxb3 {[%clk 0:02:03.2]} 49. Rc1 {[%clk 0:00:04.7]} 49... Rg3 {[%clk
0:02:01.5]} 50. Ne4 {[%clk 0:00:04.4]} 50... Rge3 {[%clk 0:02:00]} 51. Nc5
{[%clk 0:00:04]} 51... Rb6 {[%clk 0:01:55.8]} 52. a5 {[%clk 0:00:04.7]} 52...
Ra3# {[%clk 0:01:54.4]} 0-1

[Event "*** Titled Tuesday 3|2 Blitz"]
[Site "Chess.com"]
[Date "2015.12.01"]
[Round "4"]
[White "GMharikrishna"]
[Black "Frolyanov_D"]
[Result "1-0"]
[WhiteElo "2546"]
[BlackElo "2435"]
[TimeControl "180+2"]
[EndTime "11:49:47 PST"]
[Termination "GMharikrishna won by resignation"]

1. e4 {[%clk 0:03:01.9]} 1... c5 {[%clk 0:02:59.9]} 2. Nf3 {[%clk 0:03:02.9]}
2... d6 {[%clk 0:03:01]} 3. d4 {[%clk 0:03:03.5]} 3... cxd4 {[%clk 0:03:01.8]}
4. Nxd4 {[%clk 0:03:05.4]} 4... Nf6 {[%clk 0:03:03]} 5. Nc3 {[%clk 0:03:06.5]}
5... a6 {[%clk 0:03:04.6]} 6. h3 {[%clk 0:03:06.3]} 6... e6 {[%clk 0:03:03.7]}
7. g4 {[%clk 0:03:05.5]} 7... Be7 {[%clk 0:03:03.7]} 8. Bg2 {[%clk 0:03:05]}
8... Nfd7 {[%clk 0:03:04.1]} 9. g5 {[%clk 0:03:04.3]} 9... Nc6 {[%clk
0:02:49.6]} 10. f4 {[%clk 0:02:58.1]} 10... Qc7 {[%clk 0:02:34.4]} 11. h4 {[%clk
0:02:56.6]} 11... Nxd4 {[%clk 0:02:15.5]} 12. Qxd4 {[%clk 0:02:56.8]} 12... O-O
{[%clk 0:02:05.1]} 13. h5 {[%clk 0:02:52]} 13... Qc5 {[%clk 0:01:57.8]} 14. Qd3
{[%clk 0:02:42.6]} 14... d5 {[%clk 0:01:52.7]} 15. exd5 {[%clk 0:02:27.1]} 15...
e5 {[%clk 0:01:45.5]} 16. f5 {[%clk 0:02:23.8]} 16... Qb4 {[%clk 0:01:14.3]} 17.
a3 {[%clk 0:02:05.4]} 17... Qg4 {[%clk 0:01:12.8]} 18. Qf3 {[%clk 0:01:28.5]}
18... Qxf3 {[%clk 0:01:01.1]} 19. Bxf3 {[%clk 0:01:30.4]} 19... e4 {[%clk
0:00:53.8]} 20. Bxe4 {[%clk 0:01:23.9]} 20... Nc5 {[%clk 0:00:54.2]} 21. O-O
{[%clk 0:01:21.8]} 21... Nxe4 {[%clk 0:00:42.7]} 22. Nxe4 {[%clk 0:01:22.1]}
22... Re8 {[%clk 0:00:44.2]} 23. Bd2 {[%clk 0:00:58.3]} 23... Bd7 {[%clk
0:00:40.5]} 24. Rae1 {[%clk 0:00:40]} 24... Bf8 {[%clk 0:00:41]} 25. c4 {[%clk
0:00:38.3]} 25... Re5 {[%clk 0:00:39.9]} 26. Ng3 {[%clk 0:00:38.1]} 26... Rxe1
{[%clk 0:00:34.8]} 27. Rxe1 {[%clk 0:00:40]} 27... Bd6 {[%clk 0:00:34.9]} 28.
Kg2 {[%clk 0:00:25.1]} 28... Rc8 {[%clk 0:00:29]} 29. Bb4 {[%clk 0:00:18.6]}
29... Bf4 {[%clk 0:00:13]} 30. Re7 {[%clk 0:00:18.3]} 30... Be8 {[%clk
0:00:07.4]} 31. d6 {[%clk 0:00:15.6]} 31... Bxg5 {[%clk 0:00:03.5]} 32. d7
{[%clk 0:00:16.8]} 32... Bxd7 {[%clk 0:00:04.3]} 33. Rxd7 {[%clk 0:00:18.1]}
33... Rxc4 {[%clk 0:00:04.9]} 34. Rxb7 {[%clk 0:00:18.6]} 34... h6 {[%clk
0:00:05.8]} 35. Bc3 {[%clk 0:00:18.9]} 1-0

[Event "*** Titled Tuesday 3|2 Blitz"]
[Site "Chess.com"]
[Date "2015.12.01"]
[Round "4"]
[White "chessbia"]
[Black "Herman-NY"]
[Result "1-0"]
[WhiteElo "2031"]
[BlackElo "2153"]
[TimeControl "180+2"]
[EndTime "11:49:47 PST"]
[Termination "chessbia won on time"]

1. d3 {[%clk 0:03:01.9]} 1... g6 {[%clk 0:02:59.3]} 2. Nf3 {[%clk 0:03:00]} 2...
Bg7 {[%clk 0:02:59.3]} 3. g3 {[%clk 0:03:01.1]} 3... e5 {[%clk 0:03:00.4]} 4.
Bg2 {[%clk 0:03:01.5]} 4... Ne7 {[%clk 0:03:01.9]} 5. c4 {[%clk 0:03:02.4]} 5...
c6 {[%clk 0:03:01.7]} 6. O-O {[%clk 0:03:02.9]} 6... d5 {[%clk 0:03:02.6]} 7.
Nbd2 {[%clk 0:02:58.7]} 7... O-O {[%clk 0:03:01.4]} 8. Rb1 {[%clk 0:02:59.3]}
8... a5 {[%clk 0:02:57.5]} 9. b3 {[%clk 0:02:58.1]} 9... d4 {[%clk 0:02:43.8]}
10. a3 {[%clk 0:02:55.7]} 10... c5 {[%clk 0:02:44.4]} 11. b4 {[%clk 0:02:56.1]}
11... axb4 {[%clk 0:02:46.3]} 12. axb4 {[%clk 0:02:57]} 12... cxb4 {[%clk
0:02:32.9]} 13. Rxb4 {[%clk 0:02:56.6]} 13... Na6 {[%clk 0:02:29.9]} 14. Rb5
{[%clk 0:02:48.8]} 14... Nc6 {[%clk 0:02:28.1]} 15. Ne4 {[%clk 0:02:46.1]} 15...
h6 {[%clk 0:02:23.6]} 16. Ba3 {[%clk 0:02:43.3]} 16... Re8 {[%clk 0:02:24.7]}
17. Nd6 {[%clk 0:02:43.3]} 17... Nc7 {[%clk 0:02:04.7]} 18. Nxe8 {[%clk
0:02:18.9]} 18... Nxb5 {[%clk 0:02:05]} 19. cxb5 {[%clk 0:02:03]} 19... Qxe8
{[%clk 0:01:55.8]} 20. bxc6 {[%clk 0:02:00.8]} 20... Rxa3 {[%clk 0:01:56.4]} 21.
Qc1 {[%clk 0:01:53.7]} 21... Rc3 {[%clk 0:01:56.1]} 22. cxb7 {[%clk 0:01:48.4]}
22... Bxb7 {[%clk 0:01:38.2]} 23. Qb2 {[%clk 0:01:49.4]} 23... Bc6 {[%clk
0:00:39.6]} 24. Rc1 {[%clk 0:01:44.6]} 24... e4 {[%clk 0:00:37]} 25. Ne1 {[%clk
0:01:38.3]} 25... e3 {[%clk 0:00:12.3]} 26. Bxc6 {[%clk 0:01:20.6]} 26... exf2+
{[%clk 0:00:12.1]} 27. Kxf2 {[%clk 0:01:21]} 27... Qxc6 {[%clk 0:00:14]} 28.
Qb8+ {[%clk 0:01:13.3]} 28... Kh7 {[%clk 0:00:14]} 29. Rb1 {[%clk 0:01:11.3]}
29... h5 {[%clk 0:00:11.3]} 30. Nf3 {[%clk 0:01:09.6]} 30... Qf6 {[%clk
0:00:08.4]} 31. Qe8 {[%clk 0:01:01.6]} 31... Bh6 {[%clk 0:00:08.1]} 32. Rb8
{[%clk 0:00:57.7]} 32... Be3+ {[%clk 0:00:09]} 33. Kg2 {[%clk 0:00:58.9]} 33...
Rc1 {[%clk 0:00:08.2]} 34. Qg8+ {[%clk 0:00:57.3]} 34... Kh6 {[%clk 0:00:09.3]}
35. Qf8+ {[%clk 0:00:55.1]} 35... Kh7 {[%clk 0:00:09.4]} 36. h4 {[%clk
0:00:34.5]} 36... Ra1 {[%clk 0:00:09]} 37. Rb7 {[%clk 0:00:32.8]} 37... Rg1+
{[%clk 0:00:07.1]} 38. Kh2 {[%clk 0:00:32.1]} 1-0

[Event "*** Titled Tuesday 3|2 Blitz"]
[Site "Chess.com"]
[Date "2015.12.01"]
[Round "4"]
[White "ZEN-22"]
[Black "AndroQueen"]
[Result "0-1"]
[WhiteElo "2251"]
[BlackElo "2278"]
[TimeControl "180+2"]
[EndTime "11:49:49 PST"]
[Termination "AndroQueen won by resignation"]

1. d4 {[%clk 0:02:45.6]} 1... Nf6 {[%clk 0:03:00.1]} 2. Nc3 {[%clk 0:02:44.6]}
2... d5 {[%clk 0:02:59.2]} 3. Bg5 {[%clk 0:02:45.4]} 3... Nbd7 {[%clk
0:02:57.7]} 4. e4 {[%clk 0:02:45.9]} 4... dxe4 {[%clk 0:02:56.4]} 5. Bc4 {[%clk
0:02:44.3]} 5... e6 {[%clk 0:02:54.7]} 6. Nxe4 {[%clk 0:02:43.3]} 6... Be7
{[%clk 0:02:56.2]} 7. Nxf6+ {[%clk 0:02:43.9]} 7... Nxf6 {[%clk 0:02:49.9]} 8.
Nf3 {[%clk 0:02:41.7]} 8... O-O {[%clk 0:02:50.5]} 9. Qe2 {[%clk 0:02:38.8]}
9... b6 {[%clk 0:02:49.7]} 10. O-O-O {[%clk 0:02:39.1]} 10... Bb7 {[%clk
0:02:49.1]} 11. Ne5 {[%clk 0:02:38.2]} 11... Nd5 {[%clk 0:02:47.3]} 12. h4
{[%clk 0:02:28.1]} 12... f6 {[%clk 0:02:27.6]} 13. Nf3 {[%clk 0:02:24.3]} 13...
fxg5 {[%clk 0:02:27.1]} 14. Qxe6+ {[%clk 0:02:24.4]} 14... Kh8 {[%clk
0:02:27.8]} 15. hxg5 {[%clk 0:02:23.4]} 15... Bxg5+ {[%clk 0:02:24.6]} 16. Kb1
{[%clk 0:02:23.3]} 16... Bh6 {[%clk 0:02:10.6]} 17. Ne5 {[%clk 0:02:04.8]} 17...
Qd6 {[%clk 0:01:50.9]} 18. Qg4 {[%clk 0:01:16.1]} 18... Rae8 {[%clk 0:01:35.8]}
19. Qg3 {[%clk 0:00:48.8]} 19... Qf6 {[%clk 0:01:09.8]} 20. Rdf1 {[%clk
0:00:35.2]} 20... Qf4 {[%clk 0:00:56.9]} 21. Qd3 {[%clk 0:00:32.7]} 21... Qf5
{[%clk 0:00:49]} 22. Qb3 {[%clk 0:00:32.1]} 22... Nf4 {[%clk 0:00:39.4]} 23. g4
{[%clk 0:00:26.8]} 23... Qg5 {[%clk 0:00:35.1]} 24. f3 {[%clk 0:00:24.5]} 24...
Rxe5 {[%clk 0:00:33.5]} 25. dxe5 {[%clk 0:00:24.6]} 25... Qxe5 {[%clk
0:00:34.3]} 26. a4 {[%clk 0:00:15]} 26... a5 {[%clk 0:00:32.3]} 27. Re1 {[%clk
0:00:12.4]} 27... Qf6 {[%clk 0:00:33.5]} 28. Qe3 {[%clk 0:00:06.8]} 28... Ng2
{[%clk 0:00:27.3]} 29. Rxh6 {[%clk 0:00:04]} 29... gxh6 {[%clk 0:00:26]} 30. Qe7
{[%clk 0:00:03.7]} 30... Nxe1 {[%clk 0:00:19.4]} 31. Qxe1 {[%clk 0:00:05.6]}
31... Qg7 {[%clk 0:00:19.6]} 32. f4 {[%clk 0:00:04.7]} 32... Bf3 {[%clk
0:00:15.6]} 33. g5 {[%clk 0:00:05.2]} 33... hxg5 {[%clk 0:00:17.1]} 34. fxg5
{[%clk 0:00:06.6]} 34... Bh5 {[%clk 0:00:18.3]} 35. Qh4 {[%clk 0:00:05.8]} 35...
Bg6 {[%clk 0:00:19.4]} 36. Ka2 {[%clk 0:00:07.7]} 36... Bf7 {[%clk 0:00:20.5]}
37. Bb3 {[%clk 0:00:09.6]} 37... Bxb3+ {[%clk 0:00:21.4]} 38. cxb3 {[%clk
0:00:11.5]} 38... Rg8 {[%clk 0:00:22.8]} 39. Qd4 {[%clk 0:00:12.8]} 39... Qxd4
{[%clk 0:00:23.6]} 0-1

[Event "*** Titled Tuesday 3|2 Blitz"]
[Site "Chess.com"]
[Date "2015.12.01"]
[Round "4"]
[White "BakaPG"]
[Black "VMikhalevski"]
[Result "0-1"]
[WhiteElo "2477"]
[BlackElo "2504"]
[TimeControl "180+2"]
[EndTime "11:49:55 PST"]
[Termination "VMikhalevski won by resignation"]

1. e4 {[%clk 0:03:01.9]} 1... e5 {[%clk 0:02:59.3]} 2. Nf3 {[%clk 0:03:02.4]}
2... Nc6 {[%clk 0:03:00.3]} 3. Bb5 {[%clk 0:03:02.8]} 3... a6 {[%clk 0:03:00.9]}
4. Ba4 {[%clk 0:03:03.5]} 4... Nf6 {[%clk 0:03:02.5]} 5. O-O {[%clk 0:03:02.9]}
5... Nxe4 {[%clk 0:03:03.3]} 6. d4 {[%clk 0:02:56]} 6... b5 {[%clk 0:03:04.6]}
7. Bb3 {[%clk 0:02:55.4]} 7... d5 {[%clk 0:03:06]} 8. dxe5 {[%clk 0:02:56.2]}
8... Be6 {[%clk 0:03:07.3]} 9. Nbd2 {[%clk 0:02:51.2]} 9... Nc5 {[%clk 0:03:07]}
10. c3 {[%clk 0:02:51.3]} 10... Be7 {[%clk 0:03:05.7]} 11. Bc2 {[%clk
0:02:50.9]} 11... Bg4 {[%clk 0:03:06.4]} 12. h3 {[%clk 0:02:46.3]} 12... Bh5
{[%clk 0:03:06.8]} 13. Re1 {[%clk 0:02:41.6]} 13... O-O {[%clk 0:02:55.2]} 14.
Nb3 {[%clk 0:02:41.9]} 14... Ne6 {[%clk 0:02:38.9]} 15. Bf5 {[%clk 0:02:06.9]}
15... a5 {[%clk 0:02:10]} 16. a4 {[%clk 0:01:58.7]} 16... bxa4 {[%clk
0:01:55.2]} 17. Rxa4 {[%clk 0:01:55.9]} 17... Bg6 {[%clk 0:01:30.8]} 18. g4
{[%clk 0:01:50.6]} 18... Re8 {[%clk 0:01:10.3]} 19. Be3 {[%clk 0:01:32.2]} 19...
Qd7 {[%clk 0:01:01.3]} 20. Nbd4 {[%clk 0:01:18.6]} 20... Bxf5 {[%clk 0:00:53.2]}
21. Nxf5 {[%clk 0:01:17.2]} 21... Bf8 {[%clk 0:00:50.7]} 22. Qc2 {[%clk
0:01:12.7]} 22... g6 {[%clk 0:00:46.5]} 23. Nh6+ {[%clk 0:01:02.2]} 23... Bxh6
{[%clk 0:00:44.3]} 24. Bxh6 {[%clk 0:01:02]} 24... Rab8 {[%clk 0:00:44.2]} 25.
Raa1 {[%clk 0:00:52.6]} 25... Ne7 {[%clk 0:00:40.9]} 26. Rad1 {[%clk 0:00:50.4]}
26... c5 {[%clk 0:00:40]} 27. Ng5 {[%clk 0:00:45.6]} 27... Qb5 {[%clk
0:00:37.4]} 28. Nxe6 {[%clk 0:00:43.2]} 28... fxe6 {[%clk 0:00:37.2]} 29. Rd2
{[%clk 0:00:38.3]} 29... Qc4 {[%clk 0:00:27.9]} 30. Bg5 {[%clk 0:00:37.4]} 30...
Nc6 {[%clk 0:00:25.5]} 31. Bf6 {[%clk 0:00:36.8]} 31... Rb3 {[%clk 0:00:23.6]}
32. Qc1 {[%clk 0:00:28.2]} 32... Qf4 {[%clk 0:00:20.5]} 33. Re3 {[%clk
0:00:23.2]} 33... Reb8 {[%clk 0:00:20.4]} 34. Kg2 {[%clk 0:00:24.1]} 34... a4
{[%clk 0:00:19.7]} 35. Qe1 {[%clk 0:00:19.9]} 35... Rxb2 {[%clk 0:00:18.6]} 36.
Rxb2 {[%clk 0:00:12.9]} 36... Rxb2 {[%clk 0:00:19.1]} 37. Qa1 {[%clk 0:00:13]}
37... Qxf2+ {[%clk 0:00:19.2]} 0-1

[Event "*** Titled Tuesday 3|2 Blitz"]
[Site "Chess.com"]
[Date "2015.12.01"]
[Round "4"]
[White "FabianEnglert"]
[Black "AdrianaNikolova"]
[Result "1-0"]
[WhiteElo "2308"]
[BlackElo "2238"]
[TimeControl "180+2"]
[EndTime "11:49:58 PST"]
[Termination "FabianEnglert won by resignation"]

1. Nf3 {[%clk 0:03:01.9]} 1... Nf6 {[%clk 0:02:59.9]} 2. g3 {[%clk 0:03:01.2]}
2... c6 {[%clk 0:03:00.2]} 3. Bg2 {[%clk 0:03:00.5]} 3... d6 {[%clk 0:03:01.2]}
4. d4 {[%clk 0:03:00]} 4... Qc7 {[%clk 0:03:02.1]} 5. O-O {[%clk 0:03:01]} 5...
e5 {[%clk 0:03:02.9]} 6. b3 {[%clk 0:03:02.3]} 6... Be7 {[%clk 0:03:01.6]} 7.
Bb2 {[%clk 0:03:03]} 7... e4 {[%clk 0:03:02.5]} 8. Ne1 {[%clk 0:02:59.2]} 8...
d5 {[%clk 0:03:01.6]} 9. c4 {[%clk 0:02:58.8]} 9... O-O {[%clk 0:02:53.7]} 10.
Nc3 {[%clk 0:02:59]} 10... Be6 {[%clk 0:02:45.5]} 11. Rc1 {[%clk 0:02:50.8]}
11... Qa5 {[%clk 0:02:30.6]} 12. cxd5 {[%clk 0:02:48.4]} 12... cxd5 {[%clk
0:02:28.7]} 13. Nc2 {[%clk 0:02:49.6]} 13... Nc6 {[%clk 0:02:19.3]} 14. Ne3
{[%clk 0:02:47]} 14... Ba3 {[%clk 0:02:04.2]} 15. Bxa3 {[%clk 0:02:39.7]} 15...
Qxa3 {[%clk 0:02:04.4]} 16. Qd2 {[%clk 0:02:41.1]} 16... Qb4 {[%clk 0:01:46.6]}
17. Rfd1 {[%clk 0:02:39]} 17... Rfd8 {[%clk 0:01:38.3]} 18. Na4 {[%clk
0:02:37.9]} 18... Qxd2 {[%clk 0:01:37.2]} 19. Rxd2 {[%clk 0:02:39.8]} 19... Nd7
{[%clk 0:01:30.4]} 20. f3 {[%clk 0:02:38.9]} 20... f5 {[%clk 0:01:28.6]} 21. Bh3
{[%clk 0:02:30.4]} 21... exf3 {[%clk 0:01:14.5]} 22. exf3 {[%clk 0:02:12.7]}
22... g6 {[%clk 0:01:14.8]} 23. Bf1 {[%clk 0:02:03.5]} 23... a6 {[%clk
0:01:11.4]} 24. Ng2 {[%clk 0:01:53.6]} 24... Re8 {[%clk 0:01:09.3]} 25. Nf4
{[%clk 0:01:53.5]} 25... Bf7 {[%clk 0:01:09.6]} 26. Kf2 {[%clk 0:01:52.2]} 26...
Re7 {[%clk 0:01:08.9]} 27. Nc5 {[%clk 0:01:45]} 27... Nxc5 {[%clk 0:01:08]} 28.
Rxc5 {[%clk 0:01:42.9]} 28... Rd7 {[%clk 0:00:57.4]} 29. a3 {[%clk 0:01:42.5]}
29... g5 {[%clk 0:00:56.1]} 30. Nd3 {[%clk 0:01:08.4]} 30... Nxd4 {[%clk
0:00:51]} 31. Ne5 {[%clk 0:01:09.5]} 31... Nxb3 {[%clk 0:00:51.7]} 32. Nxd7
{[%clk 0:01:10.5]} 32... Nxd2 {[%clk 0:00:51.3]} 33. Bd3 {[%clk 0:01:11.6]}
33... f4 {[%clk 0:00:37.1]} 34. Nf6+ {[%clk 0:00:58.3]} 34... Kg7 {[%clk
0:00:36.5]} 35. Nxh7 {[%clk 0:00:59.6]} 35... fxg3+ {[%clk 0:00:35.3]} 36. hxg3
{[%clk 0:01:01.5]} 36... Nc4 {[%clk 0:00:34.8]} 37. Nxg5 {[%clk 0:00:52.1]}
37... Kf6 {[%clk 0:00:33.6]} 38. Nxf7 {[%clk 0:00:35.8]} 38... Kxf7 {[%clk
0:00:33.8]} 39. Rxd5 {[%clk 0:00:34.2]} 39... Nxa3 {[%clk 0:00:34.8]} 40. Rd7+
{[%clk 0:00:35.5]} 40... Kf6 {[%clk 0:00:34.7]} 41. Rxb7 {[%clk 0:00:37.4]}
41... a5 {[%clk 0:00:35.8]} 42. Rb3 {[%clk 0:00:38.6]} 1-0

[Event "*** Titled Tuesday 3|2 Blitz"]
[Site "Chess.com"]
[Date "2015.12.01"]
[Round "4"]
[White "stefanodinn"]
[Black "UltimateCrusher2"]
[Result "0-1"]
[WhiteElo "2133"]
[BlackElo "2029"]
[TimeControl "180+2"]
[EndTime "11:50:06 PST"]
[Termination "UltimateCrusher2 won on time"]

1. e4 {[%clk 0:03:01.9]} 1... b6 {[%clk 0:03:01.9]} 2. d4 {[%clk 0:03:01.7]}
2... Bb7 {[%clk 0:03:03.2]} 3. Bd3 {[%clk 0:02:58.5]} 3... e6 {[%clk 0:03:02.5]}
4. Nf3 {[%clk 0:02:56.4]} 4... Nf6 {[%clk 0:02:49.5]} 5. Qe2 {[%clk 0:02:48.4]}
5... d5 {[%clk 0:02:48.3]} 6. e5 {[%clk 0:02:47.6]} 6... Nfd7 {[%clk 0:02:48.7]}
7. O-O {[%clk 0:02:39.1]} 7... c5 {[%clk 0:02:48.2]} 8. c3 {[%clk 0:02:34.6]}
8... Nc6 {[%clk 0:02:48]} 9. Bg5 {[%clk 0:02:33.7]} 9... Be7 {[%clk 0:02:46.8]}
10. Bxe7 {[%clk 0:02:32.8]} 10... Qxe7 {[%clk 0:02:48.7]} 11. a3 {[%clk
0:02:24.3]} 11... a5 {[%clk 0:02:46.4]} 12. Nbd2 {[%clk 0:02:23.7]} 12... O-O
{[%clk 0:02:46.8]} 13. Rfe1 {[%clk 0:02:17.4]} 13... Ndb8 {[%clk 0:02:46.2]} 14.
Qe3 {[%clk 0:02:16.1]} 14... Ba6 {[%clk 0:02:45.8]} 15. Bc2 {[%clk 0:02:15.6]}
15... Nd7 {[%clk 0:02:46.3]} 16. Qf4 {[%clk 0:01:45.6]} 16... Rac8 {[%clk
0:02:35.3]} 17. Rac1 {[%clk 0:01:39.7]} 17... cxd4 {[%clk 0:02:17.8]} 18. cxd4
{[%clk 0:01:39.6]} 18... f6 {[%clk 0:02:19.7]} 19. exf6 {[%clk 0:01:22.2]} 19...
Rxf6 {[%clk 0:02:21.6]} 20. Qh4 {[%clk 0:01:08.8]} 20... g6 {[%clk 0:02:10.7]}
21. Bb1 {[%clk 0:01:01.2]} 21... Kg7 {[%clk 0:01:59.7]} 22. Qg3 {[%clk
0:00:31.2]} 22... Bb7 {[%clk 0:01:45.6]} 23. h4 {[%clk 0:00:31.5]} 23... Rcf8
{[%clk 0:01:45.8]} 24. h5 {[%clk 0:00:27.8]} 24... Qf7 {[%clk 0:01:09.1]} 25.
hxg6 {[%clk 0:00:27.5]} 25... hxg6 {[%clk 0:01:11]} 26. Ng5 {[%clk 0:00:20.4]}
26... Qe7 {[%clk 0:01:11.5]} 27. Ndf3 {[%clk 0:00:19.1]} 27... Qe8 {[%clk
0:00:53.9]} 28. Qh3 {[%clk 0:00:18.1]} 28... Rh8 {[%clk 0:00:54.5]} 29. Nxe6+
{[%clk 0:00:16.4]} 29... Kg8 {[%clk 0:00:53.7]} 30. Qg4 {[%clk 0:00:14.2]} 30...
Qf7 {[%clk 0:00:50.6]} 31. Neg5 {[%clk 0:00:13.9]} 31... Qg7 {[%clk 0:00:44.8]}
32. Re8+ {[%clk 0:00:12.8]} 32... Nf8 {[%clk 0:00:46.1]} 33. Qg3 {[%clk
0:00:09.6]} 33... Qh6 {[%clk 0:00:43.1]} 34. Nh2 {[%clk 0:00:07.5]} 34... Nxd4
{[%clk 0:00:41.9]} 35. Rce1 {[%clk 0:00:07.1]} 35... Nf5 {[%clk 0:00:39.3]} 36.
Bxf5 {[%clk 0:00:06.8]} 36... Rxf5 {[%clk 0:00:37.8]} 37. R1e7 {[%clk
0:00:07.1]} 37... Rxg5 {[%clk 0:00:32.6]} 38. Qf4 {[%clk 0:00:06.9]} 38... Bc6
{[%clk 0:00:21.7]} 39. Rf7 {[%clk 0:00:04.9]} 39... Bxe8 {[%clk 0:00:15.7]} 0-1